[Event "EYCC Girls-U14 2019"]
[Site "Bratislava"]
[Date "2019.08.08"]
[Round "7.10"]
[White "Toth, Nikoletta"]
[Black "Tsotsonava, Elene"]
[Result "0-1"]
[ECO "D00"]
[WhiteElo "2023"]
[BlackElo "1878"]
[Annotator "NA"]
[PlyCount "86"]
[EventDate "2019.08.02"]
[EventType "swiss"]
[EventCountry "SVK"]
[SourceTitle "playchess.com"]
[Source "ChessBase"]
[SourceQuality "1"]
[TimeControl "40/5400+30:1800+30"]

1. d4 {[%emt 0:00:00]} d5 {[%emt 0:00:00]} 2. Bf4 {[%emt 0:00:16]} c5 {[%emt 0:00:00]} 3. e3 {[%emt 0:02:21]} Nc6 {[%emt 0:00:17]} 4. c3 {[%emt 0:00:11]} Nf6 {[%emt 0:00:38]} 5. Nf3 {[%emt 0:00:08]} Qb6 {[%emt 0:00:48]} 6. Qc2 {[%emt 0:00:09]} Bf5 {[%emt 0:00:38]} 7. dxc5 {[%emt 0:00:20]} Bxc2 {[%emt 0:00:41]} 8. cxb6 {[%emt 0:00:03]} axb6 {[%emt 0:00:08]} 9. Na3 {[%emt 0:00:19]} e5 {[%emt 0:08:29]} 10. Nxc2 {[%emt 0:08:33]} exf4 {[%emt 0:00:08]} 11. exf4 {[%emt 0:00:05]} Bd6 {[%emt 0:00:36]} 12. g3 {[%emt 0:00:13]} O-O {[%emt 0:00:43]} 13. Bd3 {[%emt 0:02:12]} Rfe8+ {[%emt 0:06:39]} 14. Kf1 {[%emt 0:00:50]} Ne4 {[%emt 0:04:59]} 15. Kg2 {[%emt 0:06:27]} Bc5 {[%emt 0:06:48]} 16. Rhf1 {[%emt 0:02:05]} Rad8 {[%emt 0:06:39]} 17. Rad1 {[%emt 0:05:50]} f5 {[%emt 0:02:22]} 18. Bb5 {[%emt 0:12:13]} Nd6 {[%emt 0:06:16]} 19. Bxc6 {[%emt 0:02:15]} bxc6 {[%emt 0:00:06]} 20. b4 {[%emt 0:00:04]} Re2 {[%emt 0:06:31]} 21. Rd2 {[%emt 0:14:53]} Rde8 {[%emt 0:14:14]} 22. bxc5 {[%emt 0:03:13]} bxc5 {[%emt 0:03:23]} 23. Ne3 {[%emt 0:07:56]} R8xe3 {[%emt 0:02:20]} 24. Rxe2 {[%emt 0:00:33]} Rxe2 {[%emt 0:00:05]} 25. Ne5 {[%emt 0:00:09]} Rxa2 {[%emt 0:01:25]} 26. Nxc6 {[%emt 0:00:06]} Kf7 {[%emt 0:02:57]} 27. Ne5+ {[%emt 0:01:21]} Ke6 {[%emt 0:02:21]} 28. Nd3 {[%emt 0:00:55]} Ne4 {[%emt 0:00:59]} 29. Rb1 {[%emt 0:03:22]} c4 {[%emt 0:08:49]} 30. Rb6+ {[%emt 0:02:15]} Ke7 {[%emt 0:01:03]} 31. Ne5 {[%emt 0:01:36]} Nxc3 {[%emt 0:01:21]} 32. Rb7+ {[%emt 0:00:12]} Kd6 {[%emt 0:00:42]} 33. Rxg7 {[%emt 0:00:46]} Ne4 {[%emt 0:01:54]} 34. Rxh7 {[%emt 0:00:32]} Rxf2+ {[%emt 0:02:46]} 35. Kg1 {[%emt 0:00:07]} c3 {[%emt 0:01:49]} 36. Rh6+ {[%emt 0:01:17]} Ke7 {[%emt 0:01:11]} 37. Rh7+ {[%emt 0:02:14]} Kd6 {[%emt 0:04:56]} 38. Rh6+ {[%emt 0:00:10]} Kc5 {[%emt 0:01:43]} 39. Nd3+ {[%emt 0:01:13]} Kb5 {[%emt 0:00:04]} 40. Nxf2 {[%emt 0:00:00]} Nxf2 {[%emt 0:00:00]} 41. Rh8 {[%emt 0:05:20]} Ne4 {[%emt 0:04:52]} 42. Ra8 {[%emt 0:01:19]} c2 {[%emt 0:01:14]} 43. Ra1 {[%emt 0:00:18]} d4 {[%emt 0:00:22]} 0-1

[Event "EYCC Girls-U14 2019"]
[Site "Bratislava"]
[Date "2019.08.08"]
[Round "7.11"]
[White "Sovina, Maria"]
[Black "Zhou, Lulu"]
[Result "1-0"]
[ECO "D35"]
[WhiteElo "1906"]
[BlackElo "1952"]
[Annotator "NA"]
[PlyCount "81"]
[EventDate "2019.08.02"]
[EventType "swiss"]
[EventCountry "SVK"]
[SourceTitle "playchess.com"]
[Source "ChessBase"]
[SourceQuality "1"]
[TimeControl "40/5400+30:1800+30"]

1. d4 {[%emt 0:00:00]} d5 {[%emt 0:00:00]} 2. c4 {[%emt 0:00:00]} e6 {[%emt 0:00:00]} 3. Nc3 {[%emt 0:00:00]} Nf6 {[%emt 0:00:00]} 4. cxd5 {[%emt 0:00:00]} exd5 {[%emt 0:00:00]} 5. Bg5 {[%emt 0:00:00]} Nbd7 {[%emt 0:00:16]} 6. e3 {[%emt 0:00:00]} c6 {[%emt 0:00:05]} 7. Bd3 {[%emt 0:00:00]} Be7 {[%emt 0:02:55]} 8. Nge2 {[%emt 0:00:00]} h6 {[%emt 0:00:10]} 9. Bh4 {[%emt 0:00:00]} Nb6 {[%emt 0:01:26]} 10. f3 {[%emt 0:08:12]} a5 {[%emt 0:13:06]} 11. O-O {[%emt 0:07:39]} O-O {[%emt 0:00:38]} 12. e4 {[%emt 0:05:19]} dxe4 {[%emt 0:06:27]} 13. fxe4 {[%emt 0:00:15]} c5 {[%emt 0:02:50]} 14. d5 {[%emt 0:10:30]} Ng4 {[%emt 0:00:20]} 15. Bxe7 {[%emt 0:01:22]} Qxe7 {[%emt 0:01:03]} 16. Qd2 {[%emt 0:04:53]} Ne5 {[%emt 0:14:29]} 17. Ng3 {[%emt 0:04:15]} Bg4 {[%emt 0:08:47]} 18. h3 {[%emt 0:10:43]} Qh4 {[%emt 0:09:08]} 19. Qe3 {[%emt 0:01:36]} Bd7 {[%emt 0:07:29]} 20. Nf5 {[%emt 0:02:01]} Bxf5 {[%emt 0:00:17]} 21. Rxf5 {[%emt 0:00:16]} Nxd3 {[%emt 0:00:32]} 22. Qxd3 {[%emt 0:00:06]} g6 {[%emt 0:05:33]} 23. Rf2 {[%emt 0:03:21]} Qe7 {[%emt 0:04:10]} 24. Qb5 {[%emt 0:10:18]} Nc8 {[%emt 0:01:11]} 25. Re1 {[%emt 0:01:11]} b6 {[%emt 0:07:16]} 26. e5 {[%emt 0:08:03]} Nd6 {[%emt 0:06:49]} 27. Qxb6 {[%emt 0:06:02]} Nc4 {[%emt 0:00:05]} 28. Qf6 {[%emt 0:02:01]} Qxf6 {[%emt 0:00:05]} 29. Rxf6 {[%emt 0:00:02]} Kg7 {[%emt 0:00:39]} 30. Rf2 {[%emt 0:01:01]} Rfe8 {[%emt 0:00:48]} 31. Rfe2 {[%emt 0:00:56]} Rad8 {[%emt 0:01:26]} 32. d6 {[%emt 0:01:16]} Nb6 {[%emt 0:00:46]} 33. Nb5 {[%emt 0:01:47]} Nd5 {[%emt 0:01:43]} 34. Rc2 {[%emt 0:02:30]} Nf4 {[%emt 0:00:19]} 35. Nc7 {[%emt 0:00:33]} Rf8 {[%emt 0:02:18]} 36. Re4 {[%emt 0:00:17]} Ne6 {[%emt 0:00:34]} 37. Nxe6+ {[%emt 0:00:07]} fxe6 {[%emt 0:00:04]} 38. Rxc5 {[%emt 0:00:06]} Rb8 {[%emt 0:02:30]} 39. b3 {[%emt 0:00:57]} Rfc8 {[%emt 0:00:24]} 40. Rxc8 {[%emt 0:00:00]} Rxc8 {[%emt 0:00:00]} 41. Rc4 {[%emt 0:02:51]} 1-0

[Event "EYCC Girls-U14 2019"]
[Site "Bratislava"]
[Date "2019.08.08"]
[Round "7.12"]
[White "Mihelic, Vesna"]
[Black "Toncheva, Nadya"]
[Result "1-0"]
[ECO "B53"]
[WhiteElo "1831"]
[BlackElo "2137"]
[Annotator "NA"]
[PlyCount "111"]
[EventDate "2019.08.02"]
[EventType "swiss"]
[EventCountry "SVK"]
[SourceTitle "playchess.com"]
[Source "ChessBase"]
[SourceQuality "1"]
[TimeControl "40/5400+30:1800+30"]

1. e4 {[%emt 0:00:00]} c5 {[%emt 0:00:00]} 2. Nf3 {[%emt 0:00:00]} d6 {[%emt 0:00:00]} 3. d4 {[%emt 0:00:00]} cxd4 {[%emt 0:00:00]} 4. Qxd4 {[%emt 0:00:00]} a6 {[%emt 0:00:00]} 5. h3 {[%emt 0:00:07]} Nc6 {[%emt 0:00:00]} 6. Qe3 {[%emt 0:00:07]} Nf6 {[%emt 0:00:29]} 7. c4 {[%emt 0:00:51]} g6 {[%emt 0:00:12]} 8. Nc3 {[%emt 0:00:26]} Bg7 {[%emt 0:00:13]} 9. Be2 {[%emt 0:00:58]} O-O {[%emt 0:01:50]} 10. O-O {[%emt 0:00:25]} Nd7 {[%emt 0:01:26]} 11. b3 {[%emt 0:06:24]} Nde5 {[%emt 0:02:25]} 12. Bb2 {[%emt 0:02:20]} f5 {[%emt 0:01:46]} 13. exf5 {[%emt 0:07:23]} Bxf5 {[%emt 0:00:59]} 14. Rad1 {[%emt 0:01:32]} Qc8 {[%emt 0:08:14]} 15. Nxe5 {[%emt 0:04:02]} Bxe5 {[%emt 0:02:09]} 16. f4 {[%emt 0:04:36]} Bg7 {[%emt 0:02:29]} 17. g4 {[%emt 0:02:06]} Bd7 {[%emt 0:03:12]} 18. Na4 {[%emt 0:02:23]} Bxb2 {[%emt 0:06:10]} 19. Nxb2 {[%emt 0:00:25]} Qc7 {[%emt 0:00:55]} 20. c5 {[%emt 0:12:30]} Be8 {[%emt 0:12:08]} 21. cxd6 {[%emt 0:14:35]} exd6 {[%emt 0:01:01]} 22. Qe6+ {[%emt 0:07:59]} Bf7 {[%emt 0:00:07]} 23. Qxd6 {[%emt 0:00:30]} Qb6+ {[%emt 0:00:07]} 24. Kh2 {[%emt 0:00:17]} Rfe8 {[%emt 0:07:01]} 25. Bf3 {[%emt 0:11:36]} Rad8 {[%emt 0:09:02]} 26. Qf6 {[%emt 0:00:30]} Rxd1 {[%emt 0:00:23]} 27. Nxd1 {[%emt 0:01:44]} Qb4 {[%emt 0:00:18]} 28. Bxc6 {[%emt 0:02:30]} bxc6 {[%emt 0:00:04]} 29. Qc3 {[%emt 0:07:46]} Re2+ {[%emt 0:01:10]} 30. Kg3 {[%emt 0:02:19]} Qe4 {[%emt 0:16:00]} 31. Qf3 {[%emt 0:02:05]} Qe8 {[%emt 0:00:13]} 32. Rf2 {[%emt 0:00:34]} Re1 {[%emt 0:00:08]} 33. Rf1 {[%emt 0:02:10]} Bd5 {[%emt 0:03:25]} 34. Qd3 {[%emt 0:00:59]} g5 {[%emt 0:15:44]} 35. fxg5 {[%emt 0:04:20]} Re2 {[%emt 0:05:04]} 36. Rf2 {[%emt 0:00:15]} Qe5+ {[%emt 0:01:51]} 37. Kh4 {[%emt 0:00:12]} Re4 {[%emt 0:01:33]} 38. Qf3 {[%emt 0:00:46]} Qe7 {[%emt 0:00:27]} 39. Qf6 {[%emt 0:00:25]} Qxf6 {[%emt 0:00:35]} 40. gxf6 {[%emt 0:00:00]} Kf7 {[%emt 0:00:00]} 41. Nc3 {[%emt 0:00:33]} Re3 {[%emt 0:01:55]} 42. Nxd5 {[%emt 0:00:36]} cxd5 {[%emt 0:00:04]} 43. Rd2 {[%emt 0:01:40]} Re5 {[%emt 0:01:04]} 44. g5 {[%emt 0:01:51]} Kg6 {[%emt 0:00:38]} 45. Rf2 {[%emt 0:00:53]} Re4+ {[%emt 0:02:41]} 46. Kg3 {[%emt 0:00:18]} Kf7 {[%emt 0:00:57]} 47. Rf4 {[%emt 0:00:59]} Re2 {[%emt 0:01:47]} 48. Ra4 {[%emt 0:01:59]} Re6 {[%emt 0:00:12]} 49. Rd4 {[%emt 0:00:14]} Rd6 {[%emt 0:00:32]} 50. Kg4 {[%emt 0:01:06]} h6 {[%emt 0:01:20]} 51. h4 {[%emt 0:00:09]} hxg5 {[%emt 0:00:03]} 52. hxg5 {[%emt 0:00:11]} Ke6 {[%emt 0:00:26]} 53. Rf4 {[%emt 0:00:33]} Kf7 {[%emt 0:00:31]} 54. g6+ {[%emt 0:00:13]} Kf8 {[%emt 0:00:13]} 55. Kf5 {[%emt 0:00:44]} d4 {[%emt 0:00:09]} 56. Rh4 {[%emt 0:00:15]} 1-0

[Event "EYCC Girls-U14 2019"]
[Site "Bratislava"]
[Date "2019.08.08"]
[Round "7.13"]
[White "Lorente Serrano, Rosa Adela"]
[Black "Reuter, Elisa"]
[Result "0-1"]
[ECO "B38"]
[WhiteElo "1810"]
[BlackElo "1930"]
[Annotator "NA"]
[PlyCount "86"]
[EventDate "2019.08.02"]
[EventType "swiss"]
[EventCountry "SVK"]
[SourceTitle "playchess.com"]
[Source "ChessBase"]
[SourceQuality "1"]
[TimeControl "40/5400+30:1800+30"]

1. e4 {[%emt 0:00:00]} c5 {[%emt 0:00:00]} 2. Nf3 {[%emt 0:00:00]} Nc6 {[%emt 0:00:00]} 3. d4 {[%emt 0:00:26]} cxd4 {[%emt 0:00:00]} 4. Nxd4 {[%emt 0:00:55]} g6 {[%emt 0:01:11]} 5. c4 {[%emt 0:01:22]} Bg7 {[%emt 0:00:04]} 6. Be3 {[%emt 0:01:21]} Nf6 {[%emt 0:00:06]} 7. Nc3 {[%emt 0:00:55]} d6 {[%emt 0:00:43]} 8. Be2 {[%emt 0:01:58]} O-O {[%emt 0:00:11]} 9. O-O {[%emt 0:01:32]} Bd7 {[%emt 0:02:09]} 10. h3 {[%emt 0:02:00]} Nxd4 {[%emt 0:00:30]} 11. Bxd4 {[%emt 0:01:05]} Bc6 {[%emt 0:00:24]} 12. Qc2 {[%emt 0:01:07]} a5 {[%emt 0:02:34]} 13. Rad1 {[%emt 0:02:37]} Qc7 {[%emt 0:06:12]} 14. Nd5 {[%emt 0:07:53]} Bxd5 {[%emt 0:06:51]} 15. exd5 {[%emt 0:02:05]} Rac8 {[%emt 0:08:26]} 16. b3 {[%emt 0:04:57]} Rfd8 {[%emt 0:14:56]} 17. a4 {[%emt 0:08:08]} b6 {[%emt 0:02:11]} 18. Rfe1 {[%emt 0:02:36]} Rb8 {[%emt 0:02:25]} 19. Qb2 {[%emt 0:02:47]} Rb7 {[%emt 0:08:19]} 20. Bf3 {[%emt 0:07:18]} Ne8 {[%emt 0:05:07]} 21. Bxg7 {[%emt 0:03:45]} Nxg7 {[%emt 0:00:15]} 22. g4 {[%emt 0:01:18]} h6 {[%emt 0:08:07]} 23. Qd2 {[%emt 0:05:33]} Kh7 {[%emt 0:09:46]} 24. Qf4 {[%emt 0:02:04]} Rf8 {[%emt 0:02:41]} 25. Re3 {[%emt 0:02:14]} Qd8 {[%emt 0:02:25]} 26. Qd4 {[%emt 0:03:19]} f5 {[%emt 0:02:58]} 27. Rde1 {[%emt 0:00:55]} Rf7 {[%emt 0:01:55]} 28. h4 {[%emt 0:05:52]} fxg4 {[%emt 0:01:56]} 29. Bxg4 {[%emt 0:02:30]} h5 {[%emt 0:00:35]} 30. Be6 {[%emt 0:00:07]} Rf6 {[%emt 0:00:11]} 31. Rg3 {[%emt 0:01:51]} Qf8 {[%emt 0:01:48]} 32. Qd3 {[%emt 0:00:21]} Rc7 {[%emt 0:03:00]} 33. Re2 {[%emt 0:01:02]} Rc5 {[%emt 0:02:34]} 34. Ree3 {[%emt 0:02:43]} Nxe6 {[%emt 0:01:16]} 35. Rxe6 {[%emt 0:02:45]} Rxe6 {[%emt 0:00:04]} 36. dxe6 {[%emt 0:00:08]} Qf5 {[%emt 0:00:38]} 37. Qxf5 {[%emt 0:00:59]} Rxf5 {[%emt 0:00:05]} 38. Kg2 {[%emt 0:02:37]} Kg7 {[%emt 0:00:05]} 39. Rf3 {[%emt 0:00:30]} Rxf3 {[%emt 0:03:23]} 40. Kxf3 {[%emt 0:00:00]} Kf6 {[%emt 0:00:00]} 41. Kf4 {[%emt 0:00:37]} Kxe6 {[%emt 0:00:11]} 42. Kg5 {[%emt 0:00:04]} Kf7 {[%emt 0:00:07]} 43. f4 {[%emt 0:00:22]} e6 {[%emt 0:00:18]} 0-1

[Event "EYCC Girls-U14 2019"]
[Site "Bratislava"]
[Date "2019.08.08"]
[Round "7.14"]
[White "Cornileau, Juliette"]
[Black "Sevcikova, Lucia"]
[Result "1-0"]
[ECO "D02"]
[WhiteElo "1805"]
[BlackElo "1903"]
[Annotator "NA"]
[PlyCount "123"]
[EventDate "2019.08.02"]
[EventType "swiss"]
[EventCountry "SVK"]
[SourceTitle "playchess.com"]
[Source "ChessBase"]
[SourceQuality "1"]
[TimeControl "40/5400+30:1800+30"]

1. d4 {[%emt 0:00:00]} d5 {[%emt 0:00:00]} 2. Nf3 {[%emt 0:00:00]} Nf6 {[%emt 0:00:00]} 3. Bf4 {[%emt 0:00:00]} e6 {[%emt 0:00:28]} 4. e3 {[%emt 0:00:09]} c5 {[%emt 0:00:34]} 5. c3 {[%emt 0:10:51]} Nc6 {[%emt 0:01:20]} 6. Nbd2 {[%emt 0:00:45]} Bd6 {[%emt 0:01:19]} 7. Bg3 {[%emt 0:12:15]} O-O {[%emt 0:01:15]} 8. Bd3 {[%emt 0:00:43]} b6 {[%emt 0:01:11]} 9. O-O {[%emt 0:00:28]} Bb7 {[%emt 0:00:50]} 10. Ne5 {[%emt 0:02:44]} Qc7 {[%emt 0:04:05]} 11. f4 {[%emt 0:02:59]} c4 {[%emt 0:08:51]} 12. Bc2 {[%emt 0:03:50]} b5 {[%emt 0:02:03]} 13. Qf3 {[%emt 0:23:03]} a5 {[%emt 0:07:33]} 14. Bh4 {[%emt 0:04:33]} Nd7 {[%emt 0:06:14]} 15. Qh5 {[%emt 0:07:12]} f5 {[%emt 0:07:08]} 16. Ndf3 {[%emt 0:09:49]} Nf6 {[%emt 0:03:26]} 17. Bxf6 {[%emt 0:01:56]} Rxf6 {[%emt 0:01:30]} 18. Ng5 {[%emt 0:01:09]} h6 {[%emt 0:01:27]} 19. Ngf3 {[%emt 0:01:51]} Kh7 {[%emt 0:06:41]} 20. g4 {[%emt 0:02:44]} g6 {[%emt 0:04:43]} 21. Qh4 {[%emt 0:01:52]} Kg7 {[%emt 0:00:38]} 22. g5 {[%emt 0:00:55]} hxg5 {[%emt 0:00:06]} 23. fxg5 {[%emt 0:00:15]} Rff8 {[%emt 0:04:49]} 24. Qh6+ {[%emt 0:00:18]} Kg8 {[%emt 0:00:07]} 25. Qxg6+ {[%emt 0:00:46]} Kh8 {[%emt 0:00:22]} 26. Qh6+ {[%emt 0:01:45]} Qh7 {[%emt 0:01:17]} 27. Ng6+ {[%emt 0:01:40]} Kg8 {[%emt 0:00:14]} 28. Qxh7+ {[%emt 0:00:19]} Kxh7 {[%emt 0:00:06]} 29. Nxf8+ {[%emt 0:00:07]} Rxf8 {[%emt 0:00:05]} 30. h4 {[%emt 0:03:14]} Kg6 {[%emt 0:00:35]} 31. Kg2 {[%emt 0:00:48]} Rh8 {[%emt 0:00:24]} 32. Rh1 {[%emt 0:00:28]} Rh5 {[%emt 0:01:22]} 33. Ng1 {[%emt 0:02:23]} Kg7 {[%emt 0:02:38]} 34. Ne2 {[%emt 0:00:26]} Ne7 {[%emt 0:01:06]} 35. Nf4 {[%emt 0:01:08]} Bxf4 {[%emt 0:00:15]} 36. exf4 {[%emt 0:00:01]} Ng6 {[%emt 0:00:25]} 37. Kg3 {[%emt 0:00:16]} Bc6 {[%emt 0:01:19]} 38. Rae1 {[%emt 0:00:19]} Nf8 {[%emt 0:00:29]} 39. Bd1 {[%emt 0:01:07]} Rh8 {[%emt 0:00:08]} 40. h5 {[%emt 0:00:00]} Bd7 {[%emt 0:00:00]} 41. Reg1 {[%emt 0:03:28]} Kh7 {[%emt 0:05:14]} 42. Kf2 {[%emt 0:02:52]} Rg8 {[%emt 0:00:55]} 43. Ke3 {[%emt 0:01:52]} Bc6 {[%emt 0:01:47]} 44. Rg3 {[%emt 0:04:11]} Be8 {[%emt 0:04:10]} 45. Rhg1 {[%emt 0:01:05]} Rg7 {[%emt 0:01:56]} 46. Be2 {[%emt 0:03:00]} Nd7 {[%emt 0:02:04]} 47. Kf2 {[%emt 0:02:42]} Nf8 {[%emt 0:01:04]} 48. Bf3 {[%emt 0:03:31]} Bc6 {[%emt 0:03:08]} 49. Re1 {[%emt 0:02:17]} Bd7 {[%emt 0:01:10]} 50. Re2 {[%emt 0:03:37]} Bc8 {[%emt 0:00:59]} 51. Re1 {[%emt 0:01:52]} Bd7 {[%emt 0:00:04]} 52. h6 {[%emt 0:00:23]} Rg8 {[%emt 0:00:08]} 53. Bh5 {[%emt 0:01:02]} Ng6 {[%emt 0:00:07]} 54. Rf3 {[%emt 0:01:35]} Bc8 {[%emt 0:02:27]} 55. Kg3 {[%emt 0:00:28]} Bd7 {[%emt 0:00:56]} 56. Rfe3 {[%emt 0:00:30]} Re8 {[%emt 0:01:13]} 57. R3e2 {[%emt 0:02:24]} Re7 {[%emt 0:01:29]} 58. Bf3 {[%emt 0:00:56]} Rf7 {[%emt 0:02:22]} 59. Rxe6 {[%emt 0:02:17]} Bxe6 {[%emt 0:00:26]} 60. Rxe6 {[%emt 0:00:02]} Ne7 {[%emt 0:00:43]} 61. Bh5 {[%emt 0:00:29]} Rf8 {[%emt 0:00:56]} 62. Rxe7+ 1-0

[Event "EYCC Girls-U14 2019"]
[Site "Bratislava"]
[Date "2019.08.08"]
[Round "7.15"]
[White "Nadzamova, Viktoria"]
[Black "Otetea, Ioana"]
[Result "1-0"]
[ECO "C70"]
[WhiteElo "1901"]
[BlackElo "1775"]
[Annotator "NA"]
[PlyCount "127"]
[EventDate "2019.08.02"]
[EventType "swiss"]
[EventCountry "SVK"]
[SourceTitle "playchess.com"]
[Source "ChessBase"]
[SourceQuality "1"]
[TimeControl "40/5400+30:1800+30"]

1. e4 {[%emt 0:00:00]} e5 {[%emt 0:00:00]} 2. Nf3 {[%emt 0:00:00]} Nc6 {[%emt 0:00:00]} 3. Bb5 {[%emt 0:00:00]} a6 {[%emt 0:00:00]} 4. Ba4 {[%emt 0:00:00]} Nge7 {[%emt 0:00:00]} 5. O-O {[%emt 0:00:10]} g6 {[%emt 0:00:03]} 6. c3 {[%emt 0:00:18]} Bg7 {[%emt 0:00:24]} 7. d4 {[%emt 0:00:32]} exd4 {[%emt 0:00:31]} 8. cxd4 {[%emt 0:00:07]} b5 {[%emt 0:00:19]} 9. Bc2 {[%emt 0:00:16]} d6 {[%emt 0:01:17]} 10. h3 {[%emt 0:01:24]} O-O {[%emt 0:00:43]} 11. Nc3 {[%emt 0:00:24]} Bb7 {[%emt 0:04:19]} 12. Be3 {[%emt 0:01:27]} Na5 {[%emt 0:03:00]} 13. Nd2 {[%emt 0:03:27]} f5 {[%emt 0:14:07]} 14. f3 {[%emt 0:02:28]} f4 {[%emt 0:04:53]} 15. Bf2 {[%emt 0:00:09]} Nec6 {[%emt 0:06:56]} 16. Nb3 {[%emt 0:02:50]} Nc4 {[%emt 0:02:16]} 17. Rb1 {[%emt 0:01:46]} Rb8 {[%emt 0:06:59]} 18. a3 {[%emt 0:03:00]} Ba8 {[%emt 0:05:54]} 19. Qd3 {[%emt 0:01:56]} Qe7 {[%emt 0:07:31]} 20. Nd2 {[%emt 0:08:41]} Nxd2 {[%emt 0:01:14]} 21. Qxd2 {[%emt 0:02:55]} Kh8 {[%emt 0:03:34]} 22. Nd5 {[%emt 0:01:02]} Qf7 {[%emt 0:05:47]} 23. b4 {[%emt 0:02:45]} Nd8 {[%emt 0:05:17]} 24. Bb3 {[%emt 0:02:01]} Bxd5 {[%emt 0:01:40]} 25. Bxd5 {[%emt 0:00:10]} Qd7 {[%emt 0:00:32]} 26. Rbc1 {[%emt 0:03:16]} c6 {[%emt 0:00:37]} 27. Bb3 {[%emt 0:00:48]} Nb7 {[%emt 0:05:05]} 28. Rc2 {[%emt 0:04:05]} d5 {[%emt 0:05:35]} 29. Rfc1 {[%emt 0:08:40]} dxe4 {[%emt 0:02:56]} 30. fxe4 {[%emt 0:00:10]} f3 {[%emt 0:01:33]} 31. Rxc6 {[%emt 0:02:03]} fxg2 {[%emt 0:02:36]} 32. Kxg2 {[%emt 0:02:04]} Qe7 {[%emt 0:03:42]} 33. Re6 {[%emt 0:06:53]} Qf7 {[%emt 0:01:39]} 34. Qe3 {[%emt 0:00:42]} Bh6 {[%emt 0:02:41]} 35. Qg3 {[%emt 0:19:59]} Bxc1 {[%emt 0:01:25]} 36. Rc6 {[%emt 0:01:35]} Qf4 {[%emt 0:00:44]} 37. Rxc1 {[%emt 0:01:04]} Qxg3+ {[%emt 0:00:14]} 38. Bxg3 {[%emt 0:00:18]} Rbe8 {[%emt 0:01:27]} 39. Be5+ {[%emt 0:00:55]} Rxe5 {[%emt 0:00:07]} 40. dxe5 {[%emt 0:00:00]} Re8 {[%emt 0:00:00]} 41. e6 {[%emt 0:00:26]} Nd6 {[%emt 0:02:30]} 42. Bd5 {[%emt 0:01:25]} Kg7 {[%emt 0:01:07]} 43. Rc7+ {[%emt 0:00:26]} Kf6 {[%emt 0:00:43]} 44. Rxh7 {[%emt 0:01:06]} Rc8 {[%emt 0:05:27]} 45. Rd7 {[%emt 0:01:49]} Ne8 {[%emt 0:01:07]} 46. Rf7+ {[%emt 0:02:16]} Ke5 {[%emt 0:00:31]} 47. Rf8 {[%emt 0:02:24]} Rc2+ {[%emt 0:02:09]} 48. Rf2 {[%emt 0:00:35]} Rc3 {[%emt 0:00:18]} 49. Rf3 {[%emt 0:03:06]} Kd4 {[%emt 0:01:01]} 50. Rxc3 {[%emt 0:00:41]} Kxc3 {[%emt 0:00:07]} 51. e7 {[%emt 0:00:49]} Kb2 {[%emt 0:00:30]} 52. Bf7 {[%emt 0:00:21]} Nc7 {[%emt 0:00:10]} 53. e8=Q {[%emt 0:00:55]} Nxe8 {[%emt 0:00:05]} 54. Bxe8 {[%emt 0:00:06]} Kxa3 {[%emt 0:00:04]} 55. Kf2 {[%emt 0:01:21]} Kxb4 {[%emt 0:00:08]} 56. Ke2 {[%emt 0:00:47]} a5 {[%emt 0:00:34]} 57. Kd2 {[%emt 0:00:22]} Kc4 {[%emt 0:00:52]} 58. Bxg6 {[%emt 0:00:37]} Kd4 {[%emt 0:01:34]} 59. h4 {[%emt 0:00:50]} a4 {[%emt 0:00:08]} 60. Kc2 {[%emt 0:00:23]} b4 {[%emt 0:02:19]} 61. h5 {[%emt 0:00:25]} b3+ {[%emt 0:00:40]} 62. Kb2 {[%emt 0:00:19]} Kc4 {[%emt 0:00:29]} 63. Ka3 {[%emt 0:00:11]} Kc3 {[%emt 0:00:40]} 64. e5 {[%emt 0:00:24]} 1-0

[Event "EYCC Girls-U14 2019"]
[Site "Bratislava"]
[Date "2019.08.08"]
[Round "7.16"]
[White "Obrochta, Lena"]
[Black "Johansson-Ohman, Linnea"]
[Result "1-0"]
[ECO "B13"]
[WhiteElo "1870"]
[BlackElo "1603"]
[Annotator "NA"]
[PlyCount "70"]
[EventDate "2019.08.02"]
[EventType "swiss"]
[EventCountry "SVK"]
[SourceTitle "playchess.com"]
[Source "ChessBase"]
[SourceQuality "1"]
[TimeControl "40/5400+30:1800+30"]

1. e4 {[%emt 0:00:00]} c6 {[%emt 0:00:00]} 2. d4 {[%emt 0:00:00]} d5 {[%emt 0:00:00]} 3. exd5 {[%emt 0:00:00]} cxd5 {[%emt 0:00:00]} 4. Bd3 {[%emt 0:00:08]} Nc6 {[%emt 0:00:19]} 5. c3 {[%emt 0:00:25]} Nf6 {[%emt 0:00:27]} 6. Bf4 {[%emt 0:00:13]} Bg4 {[%emt 0:00:27]} 7. Qb3 {[%emt 0:00:37]} Na5 {[%emt 0:00:23]} 8. Qa4+ {[%emt 0:00:27]} Bd7 {[%emt 0:00:13]} 9. Qc2 {[%emt 0:00:49]} Qb6 {[%emt 0:01:50]} 10. Nf3 {[%emt 0:03:59]} e6 {[%emt 0:01:18]} 11. O-O {[%emt 0:03:59]} Be7 {[%emt 0:04:49]} 12. Nbd2 {[%emt 0:03:29]} O-O {[%emt 0:02:55]} 13. a4 {[%emt 0:04:24]} Rac8 {[%emt 0:03:08]} 14. Ne5 {[%emt 0:02:55]} h6 {[%emt 0:01:18]} 15. Bg3 {[%emt 0:08:43]} Nc6 {[%emt 0:10:39]} 16. Qb1 {[%emt 0:05:18]} Nxe5 {[%emt 0:25:28]} 17. dxe5 {[%emt 0:06:31]} Nh5 {[%emt 0:01:19]} 18. a5 {[%emt 0:02:07]} Qc7 {[%emt 0:06:55]} 19. f4 {[%emt 0:01:26]} Nxg3 {[%emt 0:04:48]} 20. hxg3 {[%emt 0:00:10]} Bc5+ {[%emt 0:10:17]} 21. Kh1 {[%emt 0:02:45]} a6 {[%emt 0:02:38]} 22. Nf3 {[%emt 0:07:33]} Bb5 {[%emt 0:01:18]} 23. g4 {[%emt 0:03:22]} g6 {[%emt 0:10:38]} 24. f5 {[%emt 0:09:32]} Kg7 {[%emt 0:07:35]} 25. Bxb5 {[%emt 0:05:24]} axb5 {[%emt 0:00:04]} 26. Qd3 {[%emt 0:00:14]} f6 {[%emt 0:02:46]} 27. fxe6 {[%emt 0:08:19]} fxe5 {[%emt 0:01:23]} 28. Qxd5 {[%emt 0:01:08]} Rcd8 {[%emt 0:00:28]} 29. Qxe5+ {[%emt 0:01:26]} Qxe5 {[%emt 0:00:12]} 30. Nxe5 {[%emt 0:00:06]} Rd5 {[%emt 0:00:51]} 31. Nd7 {[%emt 0:02:42]} Rxf1+ {[%emt 0:00:29]} 32. Rxf1 {[%emt 0:00:06]} Bd6 33. Re1 {[%emt 0:01:55]} Bg3 {[%emt 0:01:01]} 34. e7 {[%emt 0:01:16]} Bxe1 {[%emt 0:00:30]} 35. e8=Q {[%emt 0:00:08]} Bh4 {[%emt 0:00:33]} 1-0